bitfinex/quotes_SOLUSD_20240628
["timestamp","ask_amount","ask_price","bid_price","bid_amount"]
[1719587864296,15.4013,141.42,141.36,7.074]
[1719587864590,15.4013,141.42,141.35,7.0745]
[1719587865175,15.4013,141.42,141.36,7.0739]
[1719587865593,15.4013,141.42,141.37,1.41432154]
[1719587865779,6.1052,141.39,141.24,15.8007]
[1719587865984,15.6218,141.37,141.23,6.1542]
[1719587866180,15.6218,141.37,141.21,15.8007]
[1719587866181,6.1052,141.35,141.21,15.8007]
[1719587866381,21.41432154,141.34,141.24,7.0799]
[1719587867706,21.41432154,141.34,141.25,7.0793]
[1719587868308,21.41432154,141.34,141.26,7.079]
[1719587868510,21.41432154,141.34,141.25,7.0795]
[1719587868883,21.41432154,141.34,141.27,7.0785]
[1719587869385,6.1052,141.35,141.26,100.0]
[1719587869782,6.1052,141.35,141.3,7.0768]
[1719587869987,6.1052,141.35,141.29,7.0775]
[1719587870282,7.51952154,141.35,141.26,100.0]
[1719587870602,7.51952154,141.35,141.28,7.078]
[1719587870803,6.1052,141.35,141.26,100.0]
[1719587871006,6.1052,141.35,141.29,7.0774]
[1719587872608,6.1052,141.35,141.3,7.0771]
[1719587873181,6.1052,141.35,141.31,7.0765]
[1719587873384,15.6218,141.37,141.33,7.0755]
[1719587874487,15.6218,141.37,141.3,100.0]
[1719587874686,15.6218,141.37,141.28,100.0]
[1719587874899,15.6218,141.37,141.31,7.0763]
[1719587875793,15.6218,141.37,141.32,7.0761]
[1719587876219,15.6218,141.37,141.29,7.076]
[1719587876401,15.6218,141.37,141.32,7.076]
[1719587876983,6.4915,141.39,141.33,7.0756]
[1719587877298,20.0,141.38,141.34,7.075]
[1719587877606,20.0,141.38,141.33,7.0755]
[1719587877778,20.0,141.38,141.32,7.0759]
[1719587878297,1.41432154,141.37,141.27,12.37143864]
[1719587878794,1.41432154,141.37,141.31,7.0764]
[1719587879185,21.41432154,141.38,141.33,7.0752]
[1719587879390,21.41432154,141.38,141.32,7.0756]
[1719587880301,7.90582154,141.39,141.34,7.075]
[1719587880501,7.90582154,141.39,141.33,7.0754]
[1719587880819,7.90582154,141.39,141.34,7.075]
[1719587880985,7.90582154,141.39,141.27,12.37143864]
[1719587881513,7.90582154,141.39,141.24,122.6112]
[1719587881514,20.0,141.38,141.24,122.6112]
[1719587881718,1.41432154,141.37,141.27,7.0785]
[1719587881914,16.4666,141.36,141.24,16.3576]
[1719587882102,21.41432154,141.35,141.27,7.0783]
[1719587882300,21.41432154,141.35,141.26,7.0789]
[1719587882504,21.41432154,141.35,141.27,7.0783]
[1719587882684,21.41432154,141.35,141.25,7.0792]
[1719587882890,6.187,141.34,141.25,7.0792]
[1719587883092,21.41432154,141.33,141.26,7.0791]
[1719587883311,1.41432154,141.32,141.21,101.23008796]
[1719587883615,15.3743,141.31,141.21,8.31158796]
[1719587883798,21.41432154,141.3,141.23,7.0806]
[1719587884003,20.0,141.3,141.21,1.23008796]
[1719587884191,1.41432154,141.29,141.22,7.0808]
[1719587884394,1.41432154,141.29,141.24,7.0801]
[1719587884808,21.41432154,141.3,141.21,1.23008796]
[1719587885018,1.41432154,141.29,141.25,7.0794]
[1719587885303,1.41432154,141.29,141.23,7.0801]
[1719587885496,1.41432154,141.29,141.24,7.08]
[1719587885805,1.41432154,141.29,141.25,7.0795]
[1719587886209,1.41432154,141.29,141.24,7.0799]
[1719587886609,15.3743,141.31,141.25,7.0792]
[1719587886792,1.41432154,141.3,141.25,7.0795]
[1719587887205,1.41432154,141.29,141.24,7.08]
[1719587887917,20.0,141.3,141.22,100.0]
[1719587888091,1.41432154,141.3,141.21,1.23008796]
[1719587888491,1.41432154,141.3,141.21,8.30608796]
[1719587888723,21.41432154,141.3,141.26,7.0791]
[1719587889020,20.0,141.3,141.26,7.0791]
[1719587889214,15.3743,141.31,141.27,7.0785]
[1719587889906,15.3743,141.31,141.25,7.0791]
[1719587891190,1.41432154,141.3,141.22,7.0811]
[1719587891419,6.0975,141.28,141.2,7.0816]
[1719587891624,6.0975,141.28,141.22,7.0808]
[1719587891813,6.0975,141.28,141.23,7.0806]
[1719587891990,1.41432154,141.27,141.22,7.0809]
[1719587892194,1.41432154,141.26,141.15,100.0]
[1719587892493,1.41432154,141.26,141.17,100.0]
[1719587892699,20.0,141.27,141.23,7.0804]
[1719587893297,1.41432154,141.26,141.17,100.0]
[1719587893499,20.0,141.27,141.17,100.0]
[1719587893693,20.0,141.27,141.21,7.0812]
[1719587893891,20.0,141.27,141.17,100.0]
[1719587894111,20.0,141.27,141.22,7.081]
[1719587894318,20.0,141.27,141.17,100.0]
[1719587894319,20.0,141.27,141.21,7.0815]
[1719587894800,20.0,141.27,141.19,100.0]
[1719587895013,20.0,141.27,141.23,7.0806]
[1719587895506,6.0975,141.28,141.21,100.0]
[1719587895707,21.6455,141.31,141.23,100.0]
[1719587895911,21.6455,141.31,141.26,7.0789]
[1719587896223,1.41432154,141.3,141.23,7.0805]
[1719587896419,21.6455,141.31,141.21,100.0]
[1719587896722,21.6455,141.31,141.24,7.0799]
[1719587896894,21.6455,141.31,141.25,7.0795]
[1719587897297,1.41432154,141.3,141.19,106.601]
[1719587897500,1.41432154,141.3,141.23,7.0806]
[1719587898306,1.41432154,141.3,141.24,7.0801]
[1719587898901,21.6455,141.31,141.21,107.076]
[1719587899214,21.6455,141.31,141.29,7.0772]
[1719587899529,16.1679,141.34,141.25,100.0]
[1719587899717,16.1679,141.34,141.31,7.0764]
[1719587899909,6.1473,141.35,141.29,100.0]
[1719587900114,6.1473,141.35,141.32,7.0757]
[1719587900506,6.1473,141.35,141.31,7.0765]
[1719587900912,6.1473,141.35,141.32,7.0761]
[1719587901305,16.1679,141.38,141.32,7.0761]
[1719587901501,20.0,141.37,141.29,100.0]
[1719587901727,16.1679,141.38,141.34,7.0751]
[1719587902107,16.1679,141.38,141.31,100.0]
[1719587902300,16.1679,141.38,141.33,7.0753]
[1719587902707,16.1679,141.38,141.31,7.0761]
[1719587902910,17.58222154,141.38,141.31,7.0761]
[1719587903211,17.58222154,141.38,141.3,7.0769]
[1719587903413,17.58222154,141.38,141.31,7.0765]
[1719587903899,17.58222154,141.38,141.32,7.076]
[1719587904618,17.58222154,141.38,141.31,7.0765]
[1719587905017,16.1679,141.38,141.32,7.0761]
[1719587905214,16.1679,141.38,141.31,7.0764]
[1719587905405,16.1679,141.38,141.25,11.90484939]
[1719587905406,16.1679,141.38,141.25,111.90484939]
[1719587906136,1.41432154,141.37,141.31,7.0765]
[1719587906308,1.41432154,141.37,141.27,100.0]
[1719587906515,1.41432154,141.37,141.31,7.0763]
[1719587907420,21.41432154,141.37,141.31,7.0763]
[1719587907631,21.41432154,141.37,141.25,5.59784939]
[1719587907932,20.0,141.37,141.22,100.0]
[1719587908135,20.0,141.37,141.24,100.0]
[1719587908308,20.0,141.37,141.29,7.0775]
[1719587908710,20.0,141.37,141.26,107.076]
[1719587908918,20.0,141.37,141.3,7.0769]
[1719587909120,20.0,141.37,141.3,7.0768]
[1719587909542,20.0,141.37,141.22,5.63513787]
[1719587909543,6.0124,141.36,141.22,5.63513787]
[1719587909741,20.0,141.35,141.21,121.9107]
[1719587909914,20.0,141.35,141.24,100.0]
[1719587910217,6.0124,141.36,141.26,100.0]
[1719587910538,21.41432154,141.35,141.3,7.0767]
[1719587910713,20.0,141.35,141.3,7.0767]
[1719587911319,6.0124,141.36,141.31,7.0765]
[1719587911509,6.0124,141.36,141.28,100.0]
[1719587911727,6.0124,141.36,141.33,7.0755]
[1719587912216,16.1679,141.38,141.34,7.0748]
[1719587912427,16.1679,141.38,141.35,7.0745]
[1719587912637,16.1679,141.38,141.29,100.0]
[1719587912838,16.1679,141.38,141.36,7.0738]
[1719587913019,16.1679,141.38,141.34,7.0746]
[1719587913216,1.41432154,141.44,141.31,15.1547]
[1719587913417,6.5159,141.45,141.37,100.0]
[1719587913620,6.5159,141.45,141.4,7.0716]
[1719587914135,6.5159,141.45,141.41,1.41230717]
[1719587914344,6.5159,141.45,141.39,7.0725]
[1719587914849,6.5159,141.45,141.38,7.073]
[1719587915040,7.93022154,141.45,141.37,7.0734]
[1719587915340,7.93022154,141.45,141.39,7.0724]
[1719587915642,6.5159,141.45,141.41,7.0716]
[1719587916018,6.5159,141.45,141.35,100.0]
[1719587916220,6.5159,141.45,141.38,7.0731]
[1719587916740,6.5159,141.45,141.38,7.0729]
[1719587917441,21.41432154,141.44,141.37,7.0734]
[1719587917643,21.41432154,141.44,141.33,100.0]
[1719587917644,21.41432154,141.44,141.36,7.0741]
[1719587917844,21.41432154,141.44,141.33,100.0]
[1719587918144,21.41432154,141.44,141.31,105.57220578]
[1719587918743,21.41432154,141.44,141.36,7.074]
[1719587918930,21.41432154,141.44,141.31,105.57220578]
[1719587919223,21.41432154,141.44,141.35,7.0746]
[1719587919628,21.41432154,141.44,141.35,7.0744]
[1719587919849,21.41432154,141.44,141.34,7.075]
[1719587920037,21.41432154,141.44,141.35,7.0741]
[1719587920351,21.41432154,141.44,141.33,100.0]
[1719587920643,21.41432154,141.44,141.36,7.0738]
[1719587920830,21.41432154,141.44,141.35,7.0744]
[1719587921032,21.41432154,141.44,141.34,7.0749]
[1719587921256,21.41432154,141.44,141.36,7.0737]
[1719587921926,21.41432154,141.44,141.37,7.0736]
[1719587922241,21.41432154,141.44,141.38,7.073]
[1719587922620,1.41432154,141.43,141.31,100.0]
[1719587922824,1.41432154,141.42,141.37,7.0735]
[1719587923052,6.5159,141.45,141.37,7.0735]
[1719587923053,1.41432154,141.44,141.37,7.0735]
[1719587923348,1.41432154,141.44,141.36,7.074]
[1719587923519,1.41432154,141.44,141.37,7.0734]
[1719587923713,6.5159,141.45,141.39,7.0723]
[1719587923714,7.93022154,141.45,141.39,7.0723]
[1719587924031,7.93022154,141.45,141.4,1.41414616]
[1719587924032,6.5159,141.45,141.4,1.41414616]
[1719587924222,6.5159,141.45,141.43,7.0702]
[1719587924420,6.5159,141.45,141.44,1.41386981]
[1719587924731,6.5159,141.45,141.41,7.0713]
[1719587924933,1.41432154,141.53,141.42,1.41385209]
[1719587925347,1.41432154,141.53,141.4,7.072]
[1719587925542,21.41432154,141.53,141.4,7.072]
[1719587925731,21.41432154,141.53,141.37,100.0]
[1719587926242,21.41432154,141.53,141.41,7.0714]
[1719587926437,21.41432154,141.53,141.37,100.0]
[1719587926640,21.41432154,141.53,141.4,7.0717]
[1719587927547,21.41432154,141.53,141.41,7.0715]
[1719587927922,21.41432154,141.53,141.4,7.0719]
[1719587928122,21.41432154,141.53,141.41,7.0716]
[1719587928647,21.41432154,141.53,141.42,7.0707]
[1719587929222,1.41432154,141.53,141.44,7.0699]
[1719587929419,1.41432154,141.56,141.44,7.0699]
[1719587929624,1.41432154,141.56,141.34,5.65337325]
[1719587929625,1.41432154,141.56,141.45,100.0]
[1719587929820,1.41432154,141.56,141.47,7.0682]
[1719587930120,1.41432154,141.56,141.45,7.0693]
[1719587930325,1.41432154,141.56,141.43,100.0]
[1719587931024,1.41432154,141.56,141.43,7.0704]
[1719587931548,21.41432154,141.56,141.43,7.0704]
[1719587931840,21.41432154,141.56,141.42,7.0709]
[1719587932243,21.41432154,141.56,141.4,100.0]
[1719587932432,21.41432154,141.56,141.44,7.0697]
[1719587932738,21.41432154,141.56,141.45,7.0696]
[1719587932950,21.41432154,141.56,141.44,7.07]
[1719587933344,21.41432154,141.56,141.45,7.0695]
[1719587935041,21.41432154,141.56,141.42,100.0]
[1719587935645,21.41432154,141.56,141.44,7.0699]
[1719587936153,21.41432154,141.56,141.42,7.0706]
[1719587936649,33.67,141.52,141.42,7.0709]
[1719587936942,21.41432154,141.51,141.42,7.0708]
[1719587937330,21.41432154,141.51,141.43,7.0705]
[1719587938140,21.41432154,141.51,141.44,7.07]
[1719587938327,33.67,141.52,141.43,100.0]
[1719587938535,1.41432154,141.56,141.46,7.0689]
[1719587938536,33.67,141.55,141.46,7.0689]
[1719587938741,1.41432154,141.54,141.46,7.0689]
[1719587939231,1.41432154,141.54,141.45,7.0693]
[1719587939431,1.41432154,141.54,141.43,100.0]
[1719587939650,1.41432154,141.54,141.41,100.0]
[1719587939824,21.41432154,141.54,141.41,100.0]
[1719587940025,21.41432154,141.54,141.45,7.0696]
[1719587940227,21.41432154,141.54,141.46,7.0689]
[1719587940444,21.41432154,141.54,141.43,100.0]
[1719587940445,21.41432154,141.54,141.45,7.0696]
[1719587940644,1.41432154,141.54,141.46,7.0687]
[1719587940833,1.41432154,141.56,141.46,7.0687]
[1719587941043,1.41432154,141.56,141.47,0.99187086]
[1719587941351,1.41432154,141.56,141.45,100.0]
[1719587941540,1.41432154,141.56,141.47,7.0685]
[1719587941850,1.41432154,141.56,141.43,100.0]
[1719587942059,21.41432154,141.56,141.43,100.0]
[1719587942424,1.41432154,141.56,141.46,100.0]
[1719587942624,1.41432154,141.56,141.47,1.41306316]
[1719587942853,253.5,141.57,141.47,1.41306316]
[1719587943163,1.41432154,141.56,141.46,100.0]
[1719587943657,253.5,141.57,141.48,100.0]
[1719587943861,253.5,141.57,141.51,7.0664]
[1719587945327,253.5,141.57,141.5,100.0]
[1719587945755,253.5,141.57,141.52,100.0]
[1719587946131,253.5,141.57,141.5,100.0]
[1719587946635,253.5,141.57,141.48,100.0]
[1719587947138,253.5,141.57,141.5,100.0]
[1719587948653,253.5,141.57,141.48,100.0]
[1719587948836,15.1287,141.56,141.48,100.0]
[1719587950748,15.1287,141.56,141.5,100.0]
[1719587951252,15.1287,141.56,141.52,100.0]
[1719587952434,15.1287,141.56,141.47,100.0]
[1719587952636,15.1287,141.56,141.49,100.0]
[1719587953777,15.1287,141.56,141.47,100.0]
[1719587954263,15.1287,141.56,141.49,100.0]
[1719587954857,15.1287,141.56,141.47,100.0]
[1719587955590,1.41432154,141.55,141.45,100.0]
[1719587955882,15.1287,141.56,141.47,100.0]
[1719587956285,15.1287,141.56,141.49,100.0]
[1719587957881,15.1287,141.56,141.47,100.0]
[1719587959892,15.1287,141.56,141.49,100.0]
[1719587960064,15.1287,141.56,141.47,100.0]
[1719587960459,15.1287,141.56,141.46,15.1287]
[1719587960664,15.9398,141.54,141.46,15.1287]
[1719587960859,15.9398,141.54,141.46,157.6687]
[1719587961264,15.9398,141.54,141.46,142.54]
[1719587962583,15.9398,141.54,141.48,100.0]
[1719587963373,15.9398,141.54,141.5,142.54]
[1719587964364,15.9398,141.54,141.5,100.0]
[1719587964586,15.9398,141.54,141.48,142.54]
[1719587965368,15.9398,141.54,141.5,100.0]
[1719587966482,15.9398,141.54,141.5,142.54]
[1719587967380,6.0995,141.55,141.5,142.54]
[1719587967584,6.0995,141.55,141.52,100.0]
[1719587968082,17.0366347,141.58,141.52,142.54]
[1719587968397,17.0366347,141.58,141.53,1.41254612]
[1719587968591,17.0366347,141.58,141.54,100.0]
[1719587968788,17.0366347,141.58,141.55,1.41247643]
[1719587969374,17.0366347,141.58,141.54,100.0]
[1719587969797,17.0366347,141.58,141.56,100.0]
[1719587970371,0.8447347,141.58,141.56,100.0]
[1719587971172,0.8447347,141.58,141.56,142.54]
[1719587972796,0.8447347,141.58,141.55,42.54]
[1719587973769,0.8447347,141.58,141.54,100.0]
[1719587974586,0.8447347,141.58,141.54,142.54]
[1719587975687,0.8447347,141.58,141.56,100.0]
[1719587975882,0.8447347,141.58,141.56,142.54]
[1719587977707,0.8447347,141.58,141.57,49.616]
[1719587978197,15.8687,141.62,141.58,107.076]
[1719587979294,15.8687,141.62,141.54,142.54]
[1719587979579,7.0619,141.61,141.54,142.54]
[1719587980404,7.0627,141.59,141.53,42.54]
[1719587980779,7.0631,141.58,141.53,42.54]
[1719587981089,7.0623,141.6,141.53,42.54]
[1719587981508,7.0616,141.61,141.54,142.54]
[1719587981884,15.8687,141.62,141.54,142.54]
[1719587982816,22.93,141.62,141.54,142.54]
[1719587983107,7.063,141.59,141.53,100.0]
[1719587983321,7.0622,141.6,141.53,100.0]
[1719587983679,15.8687,141.62,141.53,142.54]
[1719587983680,7.0618,141.61,141.53,142.54]
[1719587984609,15.8687,141.62,141.53,142.54]
[1719587984814,7.0626,141.59,141.52,5.6114642]
[1719587984988,7.0633,141.58,141.51,142.54]
[1719587985192,17.28302154,141.62,141.51,142.54]
[1719587985193,7.0628,141.59,141.51,142.54]
[1719587986195,22.9299,141.62,141.54,100.0]
[1719587986412,15.8687,141.62,141.54,142.54]
[1719587986592,7.0619,141.61,141.54,142.54]
[1719587987212,22.93,141.62,141.54,142.54]
[1719587987417,15.8687,141.62,141.54,142.54]
[1719587988516,22.93,141.62,141.54,142.54]
[1719587988857,22.93,141.62,141.53,42.54]
[1719587988858,7.0625,141.6,141.53,42.54]
[1719587989417,22.9299,141.62,141.54,100.0]
[1719587989605,15.8687,141.62,141.54,142.54]
[1719587990608,15.8687,141.62,141.56,100.0]
[1719587990923,15.8687,141.62,141.58,100.0]
[1719587991225,22.9298,141.62,141.56,42.54]
[1719587991402,15.8687,141.62,141.56,42.54]
[1719587992330,6.2479,141.63,141.57,142.54]
[1719587993844,7.0571,141.71,141.63,100.0]
[1719587994038,6.2468,141.72,141.63,100.0]
[1719587994039,7.0571,141.7,141.63,149.616]
[1719587994212,6.2468,141.72,141.63,150.844]
[1719587994413,7.0575,141.7,141.63,150.844]
[1719587994921,7.0577,141.69,141.63,150.844]
[1719587995116,7.0583,141.68,141.63,1.228]
[1719587996128,7.0577,141.69,141.63,1.228]
[1719587997209,7.0571,141.7,141.64,1.41164064]
[1719587997405,7.0571,141.7,141.65,1.41152412]
[1719587998239,7.0571,141.7,141.63,1.228]
[1719587998545,7.66112154,141.72,141.64,100.0]
[1719587998736,27.0568,141.71,141.64,100.0]
[1719587999333,13.303,141.72,141.64,142.54]
[1719587999534,7.0573,141.7,141.63,43.768]
[1719587999741,7.0573,141.7,141.63,42.54]
[1719587999923,7.0567,141.71,141.64,142.54]
[1719588000735,6.2468,141.72,141.64,142.54]
[1719588000932,13.3032,141.72,141.64,142.54]
[1719588001115,6.2468,141.72,141.64,142.54]
[1719588001449,7.0572,141.7,141.64,142.54]
[1719588001839,7.0579,141.69,141.62,149.616]
[1719588002031,7.0567,141.71,141.64,100.0]
[1719588002232,6.2468,141.72,141.64,100.0]
[1719588002435,7.0572,141.7,141.64,100.0]
[1719588003938,0.8447347,141.73,141.67,100.0]
[1719588004155,0.8447347,141.73,141.68,1.41103225]
[1719588004440,0.8447347,141.73,141.67,100.0]
[1719588004639,0.8447347,141.73,141.67,142.54]
[1719588005039,0.8447347,141.73,141.68,0.98558335]
[1719588005238,0.8447347,141.73,141.69,1.40836514]
[1719588005547,0.8447347,141.73,141.69,100.0]
[1719588006042,0.8447347,141.73,141.65,55.6169]
[1719588006243,0.8447347,141.73,141.68,100.0]
[1719588006416,0.8447347,141.73,141.65,6.0009]
[1719588006622,7.9007347,141.73,141.64,115.2045]
[1719588007143,7.0561,141.72,141.64,157.7445]
[1719588007328,7.9004347,141.73,141.64,157.7445]
[1719588007712,0.8447347,141.73,141.67,100.0]
[1719588008142,0.8447347,141.73,141.66,49.615]
[1719588008323,0.8447347,141.73,141.68,42.54]
[1719588008525,0.8447347,141.73,141.69,100.0]
[1719588009049,0.8447347,141.73,141.69,142.54]
[1719588010115,0.8447347,141.73,141.69,100.0]
[1719588010350,0.8447347,141.73,141.69,142.54]
[1719588010660,0.8447347,141.73,141.7,1.41075126]
[1719588010952,0.8447347,141.73,141.69,142.54]
[1719588011245,0.8447347,141.73,141.7,42.54]
[1719588012225,0.8447347,141.73,141.69,100.0]
[1719588013429,0.8447347,141.73,141.65,100.0]
[1719588013620,7.0574,141.7,141.63,100.0]
[1719588013825,7.0576,141.69,141.62,5.73668335]
[1719588014039,7.0584,141.68,141.61,23.3849]
[1719588014242,7.0579,141.69,141.61,123.3849]
[1719588014421,7.0582,141.68,141.61,23.3849]
[1719588014830,8.47152154,141.7,141.61,123.3849]
[1719588015035,1.41432154,141.7,141.61,123.3849]
[1719588015352,22.4713,141.71,141.63,100.0]
[1719588016154,15.4147,141.71,141.63,100.0]
[1719588016446,22.4713,141.71,141.63,100.0]
[1719588016848,0.8447347,141.73,141.66,7.075]
[1719588017021,0.8447347,141.73,141.65,100.0]
[1719588017645,7.9003347,141.73,141.65,100.0]
[1719588018231,0.8447347,141.73,141.65,100.0]
[1719588018435,2.25905624,141.73,141.64,7.075]
[1719588018939,9.31475624,141.73,141.64,7.075]
[1719588019246,7.0564,141.72,141.65,0.54654669]
[1719588019432,7.0564,141.72,141.64,7.075]
[1719588019943,8.47112154,141.71,141.63,100.0]
[1719588020246,7.0568,141.71,141.63,100.0]
[1719588020751,2.25905624,141.73,141.63,100.0]
[1719588021043,22.25905624,141.73,141.63,100.0]
[1719588021227,7.0563,141.72,141.63,100.0]
[1719588021428,1.41432154,141.71,141.63,100.0]
[1719588021629,8.47102154,141.71,141.63,100.0]
[1719588022041,1.41432154,141.71,141.63,100.0]
[1719588022354,29.31475624,141.73,141.63,100.0]
[1719588023038,0.8447347,141.73,141.66,100.0]
[1719588023243,0.8447347,141.73,141.64,107.075]
[1719588023437,0.8447347,141.73,141.66,100.0]
[1719588023438,7.9006347,141.73,141.66,100.0]
[1719588023833,0.8447347,141.73,141.66,100.0]
[1719588024030,0.8447347,141.73,141.67,1.41116736]
[1719588024255,0.8447347,141.73,141.69,100.0]
[1719588024434,0.8447347,141.73,141.68,1.41092705]
[1719588024435,0.8447347,141.73,141.71,100.0]
[1719588024763,0.8447347,141.73,141.72,1.41067925]
[1719588025651,0.8447347,141.73,141.71,107.075]
[1719588025950,7.052,141.81,141.73,100.0]
[1719588026457,1.41432154,141.81,141.71,107.075]
[1719588026829,7.0523,141.8,141.71,107.075]
[1719588028223,29.0378,141.82,141.74,100.0]
[1719588028426,7.0517,141.81,141.74,100.0]
[1719588028831,29.0378,141.82,141.74,100.0]
[1719588029036,21.9865,141.82,141.74,100.0]
[1719588030043,33.64,141.89,141.76,100.0]
[1719588030044,29.6714,141.85,141.76,100.0]
[1719588030256,22.6213,141.85,141.76,100.0]
[1719588030558,22.6213,141.85,141.73,7.075]
[1719588030766,7.0525,141.8,141.72,106.192]
[1719588030932,22.6213,141.85,141.72,106.192]
[1719588031134,7.0533,141.78,141.71,22.07185298]
[1719588031430,1.41432154,141.84,141.71,22.07185298]
[1719588031431,7.0528,141.79,141.71,22.07185298]
[1719588031665,7.0523,141.8,141.71,22.07185298]
[1719588032134,1.41432154,141.84,141.73,100.0]
[1719588032336,7.0518,141.81,141.73,100.0]
[1719588032537,1.41432154,141.83,141.71,122.07185298]
[1719588032860,7.0516,141.82,141.74,100.0]
[1719588033033,7.0508,141.83,141.74,100.0]
[1719588033427,7.0513,141.82,141.74,100.0]
[1719588033878,7.0509,141.83,141.74,100.0]
[1719588034255,28.46462154,141.84,141.74,100.0]
[1719588034526,7.0518,141.81,141.73,33.64]
[1719588034945,1.41432154,141.83,141.73,33.64]
[1719588035155,7.0522,141.8,141.73,33.64]
[1719588035458,7.0522,141.8,141.74,7.075]
[1719588036032,1.41432154,141.82,141.74,7.075]
[1719588036359,7.0518,141.81,141.73,133.64]
[1719588037150,1.41432154,141.83,141.74,7.075]
[1719588037352,7.0514,141.82,141.74,7.075]
[1719588037754,7.0507,141.83,141.74,7.075]
[1719588037955,22.6213,141.85,141.75,100.0]
[1719588038453,22.6213,141.85,141.77,100.0]
[1719588038841,7.0512,141.82,141.75,100.0]
[1719588039041,1.41432154,141.84,141.75,100.0]
[1719588039560,7.0511,141.83,141.75,100.0]
[1719588039854,22.6213,141.85,141.77,100.0]
[1719588040357,22.6213,141.85,141.79,100.0]
[1719588040660,7.8935347,141.87,141.79,100.0]
[1719588041232,0.8447347,141.87,141.77,7.075]
[1719588041441,7.8934347,141.87,141.79,7.075]
[1719588041631,7.0492,141.86,141.78,133.64]
[1719588042360,7.8935347,141.87,141.8,100.0]
[1719588042670,7.0494,141.86,141.78,133.64]
[1719588042832,1.41432154,141.85,141.76,122.7128]
[1719588043039,7.0497,141.85,141.78,100.0]
[1719588043343,7.0495,141.86,141.79,1.40989331]
[1719588043663,1.41432154,141.85,141.76,149.2778]
[1719588043895,1.41432154,141.86,141.76,149.2778]
[1719588044035,7.0498,141.85,141.76,149.2778]
[1719588044232,7.0498,141.85,141.77,1.4100398]
[1719588044456,7.0502,141.84,141.76,149.2778]
[1719588044653,7.0503,141.84,141.77,1.41017253]
[1719588044861,7.05,141.85,141.77,1.41017253]
[1719588045251,20.8447347,141.87,141.79,100.0]
[1719588045252,0.8447347,141.87,141.79,100.0]
[1719588045658,7.0494,141.86,141.77,100.0]
[1719588046582,7.8936347,141.87,141.77,100.0]
[1719588046874,7.8936347,141.87,141.79,100.0]
[1719588047077,0.8447347,141.87,141.79,100.0]
[1719588047285,0.8447347,141.87,141.79,133.64]
[1719588047471,0.8447347,141.87,141.8,0.416685]
[1719588047684,0.8447347,141.87,141.81,107.075]
[1719588047856,0.8447347,141.87,141.81,107.99147431]
[1719588048053,0.8447347,141.87,141.81,7.075]
[1719588048256,0.8447347,141.87,141.82,100.0]
[1719588048567,0.8447347,141.87,141.82,149.9967]
[1719588049084,0.8447347,141.87,141.84,100.0]
[1719588049278,0.8447347,141.87,141.82,157.0717]
[1719588050281,0.8447347,141.87,141.84,100.0]
[1719588050973,0.8447347,141.87,141.84,200.0]
[1719588051189,6.5526,141.93,141.85,33.64]
[1719588051560,13.5983,141.93,141.85,33.64]
[1719588051988,6.5526,141.93,141.85,33.64]
[1719588052162,6.5526,141.93,141.86,100.0]
[1719588052683,8.45962154,141.94,141.86,100.0]
[1719588052888,30.0971,141.95,141.86,100.0]
[1719588053063,7.0452,141.94,141.86,100.0]
[1719588053262,23.0523,141.95,141.86,100.0]
[1719588053474,23.0523,141.95,141.87,1.40684589]